fUST/lending_fUST_20251010
["ID","MTS","AMOUNT","RATE_DAILY","PERIOD"]
[390609974,1760104242938,-1000.0,0.0001848,2]
[390609976,1760104242947,-1000.0,0.0001848,2]
[390609978,1760104242956,-1104.48932129,0.0001848,2]
[390609980,1760104242965,-393.292049,0.000185,2]
[390609982,1760104242978,-1991.56682362,0.000185,2]
[390609984,1760104242987,-201.36920788,0.000185,2]
[390609986,1760104242996,-452.85128755,0.000185,2]
[390609988,1760104243005,-151.0,0.000185,2]
[390609990,1760104243014,-1500.0,0.00018533,2]
[390609992,1760104243023,-1500.0,0.00018533,2]
[390609995,1760104243032,-2000.0,0.000186,2]
[390609998,1760104243042,-151.0,0.000186,2]
[390610001,1760104243051,-1245.81687951,0.00018616,2]
[390610004,1760104243060,-1500.0,0.00018616,2]
[390610006,1760104243069,-1500.0,0.00018625,2]
[390610008,1760104243078,-500.0,0.0001863,2]
[390610010,1760104243087,-153.57995504,0.0001863,2]
[390610012,1760104243097,-613.70550036,0.0001863,2]
[390610014,1760104243106,-654.64,0.0001863,2]
[390610016,1760104243115,-627.37,0.0001863,2]
[390610018,1760104243124,-500.0,0.0001863,2]
[390610020,1760104243133,-500.0,0.0001863,2]
[390610022,1760104243143,-693.9,0.0001863,2]
[390610024,1760104243152,-558.66,0.0001863,2]
[390610026,1760104243162,-535.38,0.0001863,2]
[390610028,1760104243170,-12500.0,0.0001863,7]
[390610030,1760104243180,-151.0,0.0001863,2]
[390610032,1760104243190,-151.0,0.0001863,2]
[390610034,1760104243200,-151.0,0.0001863,2]
[390610036,1760104243209,-151.0,0.0001863,2]
[390610038,1760104243219,-151.0,0.0001863,2]
[390610040,1760104243229,-151.0,0.0001863,2]
[390610042,1760104243238,-151.0,0.0001863,2]
[390610044,1760104243248,-151.0,0.0001863,2]
[390610046,1760104243257,-940.07346646,0.00018636,2]
[390610048,1760104243266,-1500.0,0.00018636,2]
[390610050,1760104243275,-624.0,0.00018654,2]
[390610052,1760104243284,-624.0,0.0001867,2]
[390610054,1760104243293,-6379.92993034,0.00018694,7]
[390610056,1760104243302,-393.292049,0.000187,2]
[390610058,1760104243311,-1991.56682362,0.000187,2]
[390610060,1760104243321,-201.36920788,0.000187,2]
[390610062,1760104243330,-452.85128755,0.000187,2]
[390610064,1760104243339,-617937.11062835,0.000187,2]
[390610068,1760104243367,-29339.500001,0.000187,2]
[390610078,1760104243448,-7583.07757319,0.000187,2]
[390610088,1760104243544,-150.0,0.00017644,2]
[390610090,1760104243554,-561.08211,0.000187,2]
[390610093,1760104243566,-2990.56783662,0.000187,2]
[390610095,1760104243577,-2263.6,0.000187,2]
[390610097,1760104243588,-2678.79131002,0.000187,2]
[390610369,1760104246427,-406.95655896,0.000187,2]
[390610371,1760104246439,-16052.77939094,0.000187,2]
[390610373,1760104246449,-18910.68697879,0.000187,2]
[390610376,1760104246460,-48393.86556644,0.000187,2]
[390610385,1760104246545,-5208.97464092,0.000187,2]
[390610387,1760104246556,-2042.02703384,0.000187,2]
[390613792,1760104339058,502.74,0.000156,2]
[390613817,1760104419340,3000.0,0.00024,30]
[390613818,1760104486478,249.954,0.00028767,120]
[390613828,1760104576052,14670.4727624,0.0002,30]
[390613833,1760104702068,1444.0,0.00026137,120]
[390613852,1760104889270,3078.21235226,0.00028767,120]
[390613854,1760105094438,175.80587057,0.00028,120]
[390613856,1760105200356,156.0,0.0002304,30]
[390613860,1760105280561,188.09,0.00015135,2]
[390613861,1760105326063,-3000.0,0.0001863,7]
[390613862,1760105330066,-3000.0,0.0001863,7]
[390613863,1760105333881,-500.0,0.0001863,7]
[390613864,1760105334698,-500.0,0.0001863,7]
[390613865,1760105357827,2000.0,0.00028767,120]
[390613866,1760105366183,2000.0,0.00028767,120]
[390613867,1760105373020,2000.0,0.00028767,120]
[390613869,1760105389487,1200.0,0.00028767,120]
[390613870,1760105404023,1200.48377722,0.00028767,120]
[390613891,1760105432725,-190.75,0.000158,2]
[390613892,1760105432734,-270.45278818,0.000158,2]
[390613893,1760105432743,-500.0,0.000158,2]
[390613894,1760105432752,-948.72446719,0.00015973,2]
[390613895,1760105432760,-157.0,0.00016055,3]
[390613896,1760105432770,-272.660866,0.00016364,2]
[390613897,1760105432778,-311.0207064,0.000164,2]
[390613898,1760105432788,-151.0,0.00016554,7]
[390613899,1760105432797,-666.0,0.00016702,2]
[390613900,1760105432805,-172.65316788,0.000169,2]
[390613901,1760105432814,-351.58862463,0.00017,2]
[390613902,1760105432824,-172.65316788,0.00017,2]
[390613903,1760105432833,-1041.66666667,0.00017016,2]
[390613904,1760105432843,-234.32063665,0.00017182,2]
[390613905,1760105432853,-168.10077245,0.00017189,2]
[390613906,1760105432863,-172.65316788,0.000172,2]
[390613907,1760105432877,-1200.0,0.00017397,2]
[390613909,1760105432887,-172.65316788,0.000174,2]
[390613911,1760105432897,-300.0,0.00017416,2]
[390613913,1760105432907,-300.0,0.00017417,2]
[390613915,1760105432920,-300.0,0.00017417,2]
[390613917,1760105432929,-300.0,0.00017417,2]
[390613919,1760105432940,-300.0,0.00017417,2]
[390613922,1760105432950,-588.2885567,0.00017418,2]
[390613925,1760105432960,-227.39551349,0.00017418,2]
[390613927,1760105432973,-0.66210401,0.00017418,2]
[390613929,1760105432983,-587.5695383,0.00017418,2]
[390613938,1760105433172,-160.3676769,0.00017418,2]
[390613940,1760105433181,-162.8446323,0.00017418,2]
[390613942,1760105433190,-166.95353775,0.000175,2]
[390614061,1760105438560,-5.69963013,0.000175,2]
[390614062,1760105438571,-392.15654286,0.000176,2]
[390614063,1760105438580,-128.61337182,0.00017742,2]
[390614064,1760105438592,-310.27662818,0.00017742,2]
[390614065,1760105438601,-314.53932656,0.00017821,2]
[390614066,1760105438614,-102.61540129,0.00017821,2]
[390614067,1760105438623,-298.03512572,0.00017821,2]
[390614068,1760105438633,-160.0,0.00017821,2]
[390614069,1760105438643,-1703.08184349,0.00017832,2]
[390614070,1760105438654,-3078.22151282,0.00017832,2]
[390614071,1760105438666,-596.80513467,0.00017832,2]
[390614073,1760105438678,-832.9999536,0.00017832,2]
[390614075,1760105438692,-12392.77525542,0.00017832,2]
[390614077,1760105438702,-92.02250788,0.00017832,2]
[390614293,1760105440686,-58.97749212,0.00017832,2]
[390614295,1760105440696,-150.0,0.00017842,2]
[390614298,1760105440705,-115.79374864,0.00017842,2]
[390614564,1760105443672,-201.47752607,0.00017732,2]
[390614565,1760105443683,-98.52319432,0.00017842,2]
[390614567,1760105443694,-708.64999875,0.00017842,2]
[390614571,1760105443732,-57.03305829,0.00017842,2]
[390614573,1760105443741,-630.0,0.00017842,2]
[390614574,1760105443751,-461.44776395,0.00017842,2]
[390614738,1760105446785,-1697.55223605,0.00017842,2]
[390614740,1760105446794,-2980.3225692,0.00017877,2]
[390619300,1760105494685,1444.0,0.00026137,120]
[390625967,1760106277002,1444.0,0.00026137,120]
[390625968,1760106285655,1033.728,0.00028767,120]
[390626027,1760106513791,1846.82,0.00028767,120]
[390626034,1760106532197,664.0,0.0002876,120]
[390626043,1760106588402,1232.843702,0.00013699,2]
[390626096,1760106632045,-171.69304529,0.0001601,2]
[390626097,1760106632054,-164.0,0.0001611,3]
[390626098,1760106632064,-43.50445324,0.0001611,2]
[390626099,1760106632076,-253.25111035,0.0001611,2]
[390626100,1760106632086,-786.7179,0.00016459,2]
[390626101,1760106632097,-1000.0,0.00016523,2]
[390626102,1760106632107,-341.26889813,0.0001671,2]
[390626103,1760106632116,-410.49272801,0.00016799,2]
[390626104,1760106632125,-385.78223266,0.0001731,2]
[390626105,1760106632135,-1041.66666667,0.0001736,2]
[390626106,1760106632144,-193.04051928,0.00017476,2]
[390626107,1760106632154,-300.0,0.00017576,2]
[390626108,1760106632163,-306.0,0.00017576,2]
[390626110,1760106632173,-13151.44340866,0.00017577,2]
[390626111,1760106632182,-226.94455725,0.00017577,2]
[390626112,1760106632192,-153.167096,0.00017578,2]
[390626113,1760106632202,-315.4867425,0.00017578,2]
[390626114,1760106632212,-1035.43646693,0.00017613,2]
[390626115,1760106632222,-705.9780113,0.00017644,2]
[390626116,1760106632233,-234.32063665,0.0001766,2]
[390626117,1760106632242,-298.03512572,0.00017661,2]
[390626118,1760106632254,-160.0,0.00017661,2]
[390626119,1760106632266,-1191.6803107,0.00017677,2]
[390626120,1760106632275,-935.0467415,0.00017677,2]
[390626121,1760106632285,-1445.346401,0.00017677,2]
[390626123,1760106632296,-3156.1749196,0.00017677,2]
[390626124,1760106632305,-5587.4684442,0.00017677,2]
[390626125,1760106632314,-262.1004124,0.00017677,2]
[390626126,1760106632325,-1463.82071191,0.00017704,2]
[390626127,1760106632335,-3653.40930231,0.000178,2]
[390626128,1760106632350,-160.0,0.00017801,2]
[390626129,1760106632359,-160.0,0.00017801,2]
[390626130,1760106632369,-1000.0,0.00017855,2]
[390626131,1760106632378,-1000.0,0.00017855,2]
[390626132,1760106632388,-1000.0,0.00017855,2]
[390626133,1760106632397,-151.0,0.00017855,2]
[390626134,1760106632406,-151.0,0.00017855,2]
[390626135,1760106632416,-1000.0,0.00017855,2]
[390626136,1760106632426,-18603.8837,0.00017855,2]
[390626137,1760106632435,-1000.0,0.00017855,2]
[390626138,1760106632445,-151.0,0.00017855,2]
[390626139,1760106632454,-1000.0,0.00017855,2]
[390626140,1760106632464,-1000.0,0.00017855,2]
[390626141,1760106632473,-1000.0,0.00017855,2]
[390626142,1760106632482,-151.0,0.00017855,2]
[390626143,1760106632491,-151.0,0.00017855,2]
[390626144,1760106632500,-1000.0,0.00017855,2]
[390626145,1760106632510,-151.0,0.00017855,2]
[390626146,1760106632519,-151.0,0.00017855,2]
[390626147,1760106632528,-151.0,0.00017855,2]
[390626148,1760106632538,-1000.0,0.00017855,2]
[390626149,1760106632547,-151.0,0.00017855,2]
[390626150,1760106632556,-151.0,0.00017855,2]
[390626151,1760106632566,-1000.0,0.00017855,2]
[390626152,1760106632576,-185.05224795,0.00017855,2]
[390626153,1760106632585,-151.0,0.00017855,2]
[390626154,1760106632595,-500.0,0.00017855,2]
[390626155,1760106632605,-151.0,0.00017855,2]
[390626156,1760106632614,-500.0,0.00017855,2]
[390626157,1760106632624,-151.0,0.00017855,2]
[390626158,1760106632633,-250.0,0.00017855,2]
[390626159,1760106632642,-500.0,0.00017855,2]
[390626160,1760106632651,-155.786338,0.00017855,2]
[390626161,1760106632661,-500.0,0.00017855,2]
[390626162,1760106632670,-500.0,0.00017855,2]
[390626163,1760106632679,-500.0,0.00017855,2]
[390626164,1760106632688,-500.0,0.00017855,2]
[390626165,1760106632698,-500.0,0.00017855,2]
[390626166,1760106632707,-151.0,0.00017855,2]
[390626167,1760106632719,-500.0,0.00017855,2]
[390626168,1760106632728,-500.0,0.00017855,2]
[390626169,1760106632737,-155.71135223,0.00017855,2]
[390626170,1760106632746,-500.0,0.00017855,2]
[390626171,1760106632755,-500.0,0.00017855,2]
[390626172,1760106632765,-500.0,0.00017855,2]
[390626173,1760106632775,-500.0,0.00017855,2]
[390626174,1760106632785,-500.0,0.00017855,2]
[390626175,1760106632794,-500.0,0.00017855,2]
[390626176,1760106632803,-500.0,0.00017855,2]
[390626177,1760106632813,-500.0,0.00017855,2]
[390626178,1760106632822,-500.0,0.00017855,2]
[390626179,1760106632831,-500.0,0.00017855,2]
[390626180,1760106632842,-250.0,0.00017855,2]
[390626181,1760106632851,-500.0,0.00017855,2]
[390626182,1760106632861,-250.0,0.00017855,2]
[390626183,1760106632870,-500.0,0.00017855,2]
[390626184,1760106632879,-500.0,0.00017855,2]
[390626185,1760106632889,-250.0,0.00017855,2]
[390626186,1760106632899,-500.0,0.00017855,2]
[390626187,1760106632908,-500.0,0.00017855,2]
[390626188,1760106632917,-500.0,0.00017855,2]
[390626189,1760106632927,-500.0,0.00017855,2]
[390626190,1760106632936,-500.0,0.00017855,2]
[390626191,1760106632945,-500.0,0.00017855,2]
[390626192,1760106632955,-500.0,0.00017855,2]
[390626193,1760106632965,-500.0,0.00017855,2]
[390626194,1760106632974,-518.84593601,0.00017855,2]
[390626195,1760106632984,-330.65640274,0.00017855,2]
[390626196,1760106633004,-169.34359726,0.00017855,2]
[390626197,1760106633014,-500.0,0.00017863,2]
[390626198,1760106633024,-500.0,0.00017863,2]
[390626199,1760106633034,-197.77995062,0.00017863,2]
[390626200,1760106633044,-500.0,0.00017863,2]
[390626201,1760106633053,-111.87702191,0.00017863,2]
[390626202,1760106636920,500.0,8.219e-05,2]
[390626209,1760106637422,500.0,8.493e-05,2]
[390626216,1760106637920,-388.12297809,0.00017863,2]
[390626217,1760106637930,-500.0,0.00017863,2]
[390626218,1760106637939,-500.0,0.00017863,2]
[390626219,1760106637948,-500.0,0.00017863,2]
[390626220,1760106637957,-500.0,0.00017863,2]
[390626221,1760106637967,-500.0,0.00017863,2]
[390626222,1760106637976,-500.0,0.00017863,2]
[390626223,1760106637986,-500.0,0.00017863,2]
[390626224,1760106637996,-494.97529013,0.00017863,2]
[390626225,1760106638006,-500.0,0.00017863,2]
[390626226,1760106638015,-500.0,0.00017863,2]
[390626227,1760106638024,-500.0,0.00017863,2]
[390626228,1760106638034,-500.0,0.00017863,2]
[390626229,1760106638043,-500.0,0.00017863,2]
[390626230,1760106638052,-500.0,0.00017863,2]
[390626231,1760106638062,-500.0,0.00017863,2]
[390626232,1760106638071,-500.0,0.00017863,2]
[390626233,1760106638081,-500.0,0.00017863,2]
[390626234,1760106638090,-500.0,0.00017863,2]
[390626235,1760106638102,-500.0,0.00017863,2]
[390626236,1760106638111,-164.69501326,0.00017863,2]
[390626237,1760106638122,-500.0,0.00017863,2]
[390626238,1760106638132,-500.0,0.00017863,2]
[390626239,1760106638143,-242.31737248,0.00017863,2]
[390626240,1760106638152,-380.77979703,0.00017863,2]
[390626241,1760106638162,-500.0,0.00017863,2]
[390626242,1760106638172,-500.0,0.00017863,2]
[390626243,1760106638183,-658.57620859,0.00017864,2]
[390626244,1760106638193,-500.0,0.00017865,2]
[390626245,1760106638204,-980.0,0.00017877,2]
[390626246,1760106638214,-630.0,0.00017877,2]
[390626247,1760106638225,-2159.0,0.00017877,2]
[390626248,1760106638235,-411.0,0.00017877,2]
[390626249,1760106638246,-414.167,0.00017877,2]
[390626250,1760106638255,-2000.0,0.00017877,2]
[390626251,1760106638269,-616.604,0.00017877,2]
[390626252,1760106638279,-233.71506351,0.00017893,2]
[390626253,1760106638289,-430.2955672,0.0001791,2]
[390626255,1760106638298,-4195.0,0.00017915,2]
[390626257,1760106638308,-500.0,0.00017972,2]
[390626259,1760106638318,-500.0,0.00017972,2]
[390626261,1760106638327,-151.0,0.00017972,2]
[390626262,1760106638337,-151.0,0.00017972,2]
[390626263,1760106638350,-151.57444168,0.00017972,2]
[390626265,1760106638360,-500.0,0.00017972,2]
[390626267,1760106638370,-500.0,0.00017972,2]
[390626268,1760106638385,-151.0,0.00017972,2]
[390626269,1760106638396,-198.0,0.00017972,2]
[390626270,1760106638405,-151.0,0.00017972,2]
[390626271,1760106638414,-227.40347426,0.00018,2]
[390626272,1760106638424,-184.93090518,0.00018,2]
[390626273,1760106638434,-207.94191775,0.00018,2]
[390626275,1760106638444,-247.00472485,0.00018,2]
[390626277,1760106638453,-905.27720715,0.00018,2]
[390626279,1760106638463,-160.00000001,0.00018,2]
[390626281,1760106638472,-391.8516513,0.00018,2]
[390626283,1760106638482,-391.8516513,0.00018,2]
[390626285,1760106638491,-783.7033026,0.00018,2]
[390626287,1760106638500,-151.0,0.00018,2]
[390626289,1760106638510,-151.0,0.00018,2]
[390626291,1760106638521,-151.0,0.00018,2]
[390626293,1760106638530,-151.0,0.00018,2]
[390626295,1760106638540,-152.02473839,0.00018,2]
[390626297,1760106638550,-500.0,0.00018,2]
[390626299,1760106638559,-151.0,0.00018,2]
[390626301,1760106638567,-500.0,0.00018,2]
[390626303,1760106638577,-151.0,0.00018,2]
[390626305,1760106638586,-500.0,0.00018,2]
[390626307,1760106638597,-500.0,0.00018,2]
[390626309,1760106638606,-500.0,0.00018,2]
[390626311,1760106638615,-256.84604681,0.00018,2]
[390626313,1760106638625,-464.0088903,0.00018,2]
[390626315,1760106638634,-151.0,0.00018,2]
[390626316,1760106638644,-151.0,0.00018,2]
[390626318,1760106638653,-151.0,0.00018,2]
[390626320,1760106638663,-500.0,0.00018,2]
[390626322,1760106638673,-500.0,0.00018,2]
[390626324,1760106638683,-159.19814382,0.00018,2]
[390626326,1760106638692,-151.0,0.00018,2]
[390626328,1760106638701,-151.0,0.00018,2]
[390626330,1760106638711,-500.0,0.00018027,2]
[390626332,1760106638720,-500.0,0.00018027,2]
[390626334,1760106638730,-200.30479449,0.00018027,2]
[390626336,1760106638739,-500.0,0.00018027,2]
[390626338,1760106638750,-500.0,0.00018027,2]
[390626340,1760106638760,-152.87937848,0.00018027,2]
[390626342,1760106638769,-2200.0,0.00018037,2]
[390626344,1760106638779,-436.32666043,0.00018051,2]
[390626346,1760106638788,-416.30412594,0.00018051,2]
[390626348,1760106638798,-151.0,0.00018055,2]
[390626350,1760106638807,-151.0,0.00018055,2]
[390626352,1760106638816,-500.0,0.00018055,2]
[390626354,1760106638826,-151.0,0.00018055,2]
[390626356,1760106638835,-500.0,0.00018055,2]
[390626358,1760106638847,-151.0,0.00018055,2]
[390626360,1760106638856,-500.0,0.00018055,2]
[390626362,1760106638866,-151.0,0.00018055,2]
[390626364,1760106638875,-151.0,0.00018055,2]
[390626366,1760106638884,-151.0,0.00018055,2]
[390626368,1760106638894,-500.0,0.00018055,2]
[390626370,1760106638903,-153.69621454,0.00018082,2]
[390626371,1760106638913,-500.0,0.00018082,2]
[390626374,1760106638922,-153.74424798,0.00018082,2]
[390626376,1760106638934,-500.0,0.00018082,2]
[390626378,1760106638943,-297.6412454,0.00018082,2]
[390626379,1760106638954,-151.0,0.0001811,2]
[390626381,1760106638963,-151.0,0.0001811,2]
[390626383,1760106638973,-500.0,0.0001811,2]
[390626385,1760106638983,-151.0,0.0001811,2]
[390626387,1760106638993,-442.45263202,0.0001811,2]
[390626389,1760106639003,-153.00574336,0.0001811,2]
[390626392,1760106639013,-305.57153358,0.0001811,2]
[390626394,1760106639024,-193.79122132,0.0001811,2]
[390626396,1760106639034,-151.0,0.0001811,2]
[390626398,1760106639044,-151.0,0.0001811,2]
[390626400,1760106639053,-624.0,0.00018133,2]
[390626401,1760106639063,-500.0,0.00018136,2]
[390626403,1760106639073,-8.10533931,0.00018139,2]
[390626406,1760106639086,-2437.1091665,0.00018139,2]
[390626408,1760106639099,-501.11918006,0.00018139,2]
[390626410,1760106639109,-500.0,0.00018139,2]
[390626412,1760106639119,-624.0,0.00018164,2]
[390626414,1760106639129,-500.7047783,0.00018164,2]
[390626416,1760106639139,-173.5979126,0.00018164,2]
[390626418,1760106639149,-151.0,0.00018164,2]
[390626420,1760106639159,-329.83,0.0001819,3]
[390626422,1760106639169,-500.0,0.00018191,2]
[390626424,1760106639179,-207.94191775,0.000182,2]
[390626426,1760106639189,-247.00472485,0.000182,2]
[390626428,1760106639199,-905.27720715,0.000182,2]
[390626430,1760106639208,-753.324,0.000182,2]
[390626432,1760106639218,-151.0,0.00018219,2]
[390626434,1760106639228,-500.0,0.00018246,2]
[390626436,1760106639237,-112.62344087,0.00018274,2]
[390626440,1760106639274,500.0,8.767e-05,2]
[390626470,1760106639519,500.0,9.041e-05,2]
[390626479,1760106639559,500.0,9.315e-05,2]
[390626492,1760106639617,500.0,9.589e-05,2]
[390626524,1760106639858,-298.03512572,0.0001766,2]
[390626526,1760106639868,-250.0,0.00017855,2]
[390626528,1760106639877,-250.0,0.00017855,2]
[390626530,1760106639886,-151.0,0.00018027,2]
[390626532,1760106639895,-151.56421726,0.00018082,2]
[390626534,1760106639904,-177.93,0.000181,2]
[390626536,1760106639914,-132.37655913,0.00018274,2]
[390626538,1760106639922,-500.0,0.00018301,2]
[390626540,1760106639932,-2.18226246,0.00018316,2]
[390626553,1760106640048,-621.81773754,0.00018316,2]
[390626555,1760106640057,-288.0,0.00018356,2]
[390626557,1760106640067,-296.4665998,0.00018356,2]
[390626559,1760106640076,-624.0,0.00018376,2]
[390626561,1760106640085,-247.00472485,0.000184,2]
[390626563,1760106640095,-905.27720715,0.000184,2]
[390626564,1760106640105,-7376.9779045,0.00018403,2]
[390626566,1760106640114,-500.0,0.00018413,2]
[390626569,1760106640124,-624.0,0.00018468,2]
[390626571,1760106640133,-510.65268518,0.0001848,2]
[390626573,1760106640142,-247.00472485,0.000185,2]
[390626575,1760106640151,-905.27720715,0.000185,2]
[390626577,1760106640161,-399.70554934,0.000185,2]
[390626578,1760106640170,-474.80890174,0.0001851,2]
[390626579,1760106640180,-624.0,0.00018532,2]
[390626580,1760106640190,-160.0,0.00018534,3]
[390626581,1760106640199,-151.0,0.0001858,2]
[390626582,1760106640208,-151.0,0.0001858,2]
[390626583,1760106640218,-151.0,0.0001858,2]
[390626584,1760106640227,-624.0,0.0001858,2]
[390626585,1760106640237,-624.0,0.00018582,2]
[390626587,1760106640247,-2000.0,0.000186,2]
[390626589,1760106640264,-624.0,0.00018622,2]
[390626590,1760106640276,-2513.30837674,0.0001863,7]
[390626595,1760106640308,500.0,9.863e-05,2]
[390626597,1760106640320,-2986.69162326,0.0001863,7]
[390626599,1760106640330,-12500.0,0.0001863,7]
[390626601,1760106640339,-298.03512572,0.0001863,7]
[390626603,1760106640349,-1135.0,0.0001863,7]
[390626605,1760106640358,-377.54857412,0.0001863,2]
[390626607,1760106640366,-597.1758409,0.0001863,2]
[390626609,1760106640375,-151.0,0.00018635,2]
[390626611,1760106640385,-923.0,0.00018667,2]
[390626613,1760106640394,-200.02693205,0.00018671,2]
[390626615,1760106640403,-500.0,0.00018687,2]
[390626617,1760106640413,-151.0,0.0001869,2]
[390626619,1760106640422,-931.8062984,0.00018696,2]
[390626621,1760106640431,-1096.829041,0.00018697,2]
[390626623,1760106640440,-247.00472485,0.000187,2]
[390626625,1760106640450,-905.27720715,0.000187,2]
[390626627,1760106640459,-160.0,0.00018827,4]
[390626629,1760106640468,-510.65268518,0.00018835,2]
[390626631,1760106640477,-5888.0,0.00018837,2]
[390626633,1760106640487,-300.0,0.00018849,2]
[390626635,1760106640496,-300.0,0.00018849,2]
[390626637,1760106640506,-300.0,0.00018849,2]
[390626639,1760106640516,-300.0,0.00018849,2]
[390626641,1760106640525,-300.0,0.00018849,2]
[390626643,1760106640534,-300.0,0.00018849,2]
[390626645,1760106640543,-300.0,0.00018849,2]
[390626647,1760106640552,-300.0,0.00018849,2]
[390626649,1760106640561,-300.0,0.00018849,2]
[390626651,1760106640570,-300.0,0.00018849,2]
[390626653,1760106640579,-300.0,0.00018849,2]
[390626655,1760106640588,-300.0,0.00018849,2]
[390626657,1760106640599,-300.0,0.00018849,2]
[390626659,1760106640609,-300.0,0.00018849,2]
[390626661,1760106640618,-300.0,0.00018849,2]
[390626663,1760106640627,-23764.24485887,0.00018861,2]
[390626669,1760106640683,500.0,0.00010137,2]
[390626698,1760106640954,500.0,0.00010411,2]
[390626748,1760106641448,500.0,0.00010685,2]
[390626800,1760106641937,500.0,0.00010959,2]
[390626901,1760106642858,-268.07637775,0.00017855,2]
[390626903,1760106642867,-34963.11463283,0.00018861,2]
[390626905,1760106642877,-923.0,0.00018874,2]
[390626907,1760106642886,-923.0,0.00018876,2]
[390626909,1760106642895,-177.93,0.0001889,2]
[390626911,1760106642904,-164.91,0.0001889,3]
[390626913,1760106642914,-37488.24550777,0.000189,2]
[390627198,1760106645836,-1385.66157919,0.000189,2]
[390627201,1760106645848,-1436.78859655,0.000189,2]
[390634053,1760106800331,3004.3676568,0.00028767,120]
[390634084,1760107059543,1444.0,0.00026137,120]
[390634085,1760107078797,916.0,0.00028,120]
[390634343,1760107424690,1905.0,0.00025,120]
[390634346,1760107555031,2891.13,0.00024,30]
[390634348,1760107567567,4579.65,0.00024,30]
[390634368,1760107642568,2495.0,0.0002876,120]
[390634443,1760107695884,1000.0,0.00024,30]
[390634444,1760107803277,109730.0,0.0002713,120]
[390634500,1760107832331,-3920.0,0.000161,2]
[390634501,1760107832340,-270.33249525,0.000161,2]
[390634502,1760107832350,-156.0,0.00016164,3]
[390634503,1760107832358,-666.0,0.00016652,2]
[390634504,1760107832368,-310.88236954,0.000167,2]
[390634505,1760107832376,-321.30673845,0.00016905,2]
[390634506,1760107832386,-300.0,0.00017297,2]
[390634507,1760107832394,-351.43224382,0.000173,2]
[390634508,1760107832403,-1041.66666667,0.00017486,2]
[390634509,1760107832414,-200.0,0.0001751,2]
[390634510,1760107832423,-160.0,0.00017722,2]
[390634511,1760107832433,-160.0,0.00017736,2]
[390634512,1760107832442,-234.32063665,0.00017737,2]
[390634513,1760107832452,-160.0,0.00017737,2]
[390634515,1760107832461,-298.03512572,0.00017737,2]
[390634516,1760107832470,-198.57648762,0.00017864,2]
[390634517,1760107832479,-161.93777355,0.00017899,2]
[390634518,1760107832488,-500.0,0.00017899,2]
[390634519,1760107832498,-443.88614335,0.00017899,2]
[390634520,1760107832507,-500.0,0.00017899,2]
[390634521,1760107832517,-360.25748583,0.00017899,2]
[390634522,1760107832527,-300.54633791,0.00017899,2]
[390634523,1760107832536,-482.06023776,0.00017899,2]
[390634524,1760107832545,-3245.89662541,0.000179,2]
[390634526,1760107832557,-831.86668347,0.000179,2]
[390634528,1760107832568,-1480.000025,0.000179,2]
[390634557,1760107838165,-160.0,0.00017736,2]
[390634558,1760107838175,-973.60906219,0.000179,2]
[390634560,1760107838186,-1011.7194644,0.000179,2]
[390634561,1760107838197,-4717.75764161,0.000179,2]